Workbook

Sheet Лист1
A1: 1 день
A2: Наименование блюда | B2: Выход блюда | C2: Кол-во в гр | E2: Химический состав | H2: Калории | I2: Витамин | J2: Цена | K2: Сумма
C3: брутто | D3: нетто | E3: белки | F3: жиры | G3: углеводы | I3: С
A4: Завтрак
A5: Каша пшенная молочная | B5: 200
A6: пшено | C6: 30 | D6: 30 | E6: 3.45 | F6: 0.99 | G6: 19.95 | H6: 104.4 | I6: 0
A7: молоко | C7: 130 | D7: 130 | E7: 3.64 | F7: 3.25 | G7: 6.11 | H7: 67.6 | I7: 0.1
A8: вода | C8: 40 | D8: 40
A9: сахар | C9: 8 | D9: 8 | E9: 0 | F9: 0 | G9: 7.98 | H9: 30.32 | I9: 0
A10: Масло сливочное | C10: 3 | D10: 3 | E10: 0.009 | F10: 2.94 | G10: 0.018 | H10: 0.018 | I10: 26.61
A11: Бутерброд с маслом и сыром | B11: 62
A12: Масло сливочное | C12: 8 | D12: 8 | E12: 0.024 | F12: 7.84 | G12: 0.05 | H12: 70.91 | I12: 0.06
A13: Батон(хлеб пшеничный) | C13: 42 | D13: 42 | E13: 3.23 | F13: 1.26 | G13: 20.45 | H13: 110.06 | I13: 0
A14: Сыр твердый | C14: 12.8 | D14: 12.8 | E14: 2.94 | F14: 5.72 | G14: 0 | H14: 46.08 | I14: 0.22
A15: Какао с молоком | B15: 200
A16: Какао (порошок) | C16: 1.8 | D16: 1.8 | E16: 0.58 | F16: 0.43 | G16: 8.95 | H16: 0.012 | I16: 0.43
A17: сахар | C17: 12 | D17: 12 | E17: 0 | F17: 0 | G17: 12 | H17: 45.48 | I17: 0
A18: молоко | C18: 150 | D18: 150 | E18: 4.2 | F18: 5.72 | G18: 7.05 | H18: 91.54 | I18: 0.12
A19: вода | C19: 70 | D19: 70
A20: 2-ой завтрак
A21: Фрукт | B21: 160 | C21: 160 | D21: 160 | E21: 0.64 | F21: 0.48 | G21: 67.2 | H21: 69 | I21: 64
A22: Обед
A23: Салат морковный с яблоками (1.07-1.03) | B23: 60
A24: Яблоки | C24: 20 | D24: 14 | E24: 0.08 | G24: 2.26 | H24: 9.2 | I24: 26
A25: морковь | C25: 50 | D25: 40 | E25: 0.67 | F25: 0.05 | G25: 42 | H25: 17 | I25: 2.5
A26: масло растительное | C26: 2 | D26: 2 | E26: 0 | F26: 2 | G26: 0 | H26: 0 | I26: 0
A27: сахар | C27: 2 | D27: 2 | E27: 0 | F27: 0 | G27: 5 | H27: 18.95 | I27: 0
A28: Суп с клецками на мкб | B28: 250
A29: картофель | C29: 90 | D29: 75 | E29: 1.8 | F29: 0.36 | G29: 15.16 | H29: 72 | I29: 0.85
A30: морковь | C30: 21 | D30: 15 | E30: 0.28 | F30: 0 | G30: 17.64 | H30: 7.14 | I30: 1.05
A31: Лук | C31: 17 | D31: 15 | E31: 0.28 | F31: 0 | G31: 1.54 | H31: 6.97 | I31: 0
A32: Масло растительное | C32: 3 | D32: 3 | E32: 0.5 | F32: 0.05 | G32: 3.21 | H32: 14.3 | I32: 0
A33: Вода | C33: 300 | D33: 300
A34: мука | C34: 26 | D34: 26 | E34: 2.58 | F34: 1.7 | G34: 17.25 | H34: 86.84 | I34: 0
A35: яйцо | C35: 15 | D35: 15 | E35: 1.9 | F35: 1.67 | G35: 0.1 | H35: 21.27 | I35: 2
A36: Мясо говядины на кости | C36: 42 | D36: 34 | E36: 7.81 | F36: 6.72 | G36: 0 | H36: 91.56 | I36: 1.18
A37: Масло сливочное | C37: 2 | D37: 2 | E37: 0.014 | F37: 1.56 | G37: 0.02 | H37: 14.18 | I37: 0.44
A38: Голубцы ленивые | B38: 220
A39: Капуста белокочанная | C39: 150 | D39: 120 | E39: 4.13 | F39: 0.23 | G39: 10.83 | H39: 61.96 | I39: 114.78
A40: Говядина | C40: 62 | D40: 57 | E40: 12.3 | F40: 8.7 | G40: 0 | H40: 134.21 | I40: 2.01
A41: рис | C41: 15 | D41: 15 | E41: 1.05 | F41: 0.15 | G41: 10.69 | H41: 30.93 | I41: 0
A42: лук | C42: 15 | D42: 12
A43: Масло сливочное | C43: 4 | D43: 4 | E43: 0.028 | F43: 3.12 | G43: 0.04 | H43: 28.36 | I43: 0.028
A44: сметана | C44: 8 | D44: 8 | E44: 0.22 | F44: 2.4 | G44: 0.25 | H44: 23.52 | I44: 0.012
A45: Морковь | C45: 20 | D45: 16 | E45: 0.28 | F45: 0 | G45: 17.64 | H45: 7.14 | I45: 1.05
A46: Хлеб ржаной | B46: 55 | C46: 55 | D46: 55 | E46: 3.63 | F46: 0.66 | G46: 18.81 | H46: 99.55 | I46: 0
A47: Компот из сухофруктов | B47: 200
A48: Сухофрукты ассорти | C48: 16 | D48: 41 | E48: 0.13 | F48: 0 | G48: 10.35 | H48: 43.77 | I48: 0.74
A49: лимон | C49: 7 | D49: 5 | E49: 0.19 | F49: 0.021 | G49: 0.63 | H49: 6.3 | I49: 0
A50: сахар | C50: 12 | D50: 12 | E50: 0 | F50: 0 | G50: 12 | H50: 45.48 | I50: 0
A51: вода | C51: 203 | D51: 203
A52: Полдник
A53: Молоко | B53: 200
A54: Молоко | C54: 209 | D54: 200 | E54: 5.84 | F54: 5.32 | G54: 9.4 | H54: 127.49 | I54: 2.09
A55: Пряник п/ф | B55: 40 | C55: 40 | D55: 40 | E55: 3,4 | F55: 5,7 | G55: 16,87 | H55: 57,6 | I55: 0,2
A56: ВСЕГО ЗА ДЕНЬ | E56: =SUM(E6:E55) -> 62.345 | F56: =SUM(F6:F55) -> 63.341 | G56: =SUM(G6:G55) -> 344.578 | H56: =SUM(H5:H55) -> 1603.54 | I56: =SUM(I6:I55) -> 246.27
A57: Соль за день | B57: 6 | C57: 6 | D57: 6
A59: 2 день
A60: Наименование блюда | B60: Выход блюда | C60: Кол-во в гр | E60: Химический состав | H60: Калории | I60: Витамин С | J60: Цена | K60: Сумма
C61: брутто | D61: нетто | E61: белки | F61: жиры | G61: углеводы
A62: Завтрак
A63: Каша манная молочная | B63: 200
A64: Крупа манная | C64: 20 | D64: 20 | E64: 2.05 | F64: 0.2 | G64: 19.57 | H64: 65.6 | I64: 0
A65: вода | C65: 60 | D65: 60
A66: молоко | C66: 130 | D66: 130 | E66: 3.64 | F66: 4.16 | G66: 9.11 | H66: 75.4 | I66: 1.3
A67: Масло сливочное | C67: 3 | D67: 3 | E67: 0.021 | F67: 2.34 | G67: 0.03 | H67: 21.27 | I67: 0.021
A68: сахар | C68: 8 | D68: 8 | E68: 0 | F68: 0 | G68: 5.98 | H68: 22.74 | I68: 0
A69: Бутерброд с маслом | B69: 50
A70: Масло сливочное | C70: 8 | D70: 8 | E70: 0.057 | F70: 6.24 | G70: 0.08 | H70: 56.61 | I70: 0.06
A71: Батон (хлеб пшеничный) | C71: 42 | D71: 42 | E71: 3.24 | F71: 1.26 | G71: 30.45 | H71: 110.06 | I71: 0
A72: Кофейный напиток | B72: 200
A73: Кофейный напиток | C73: 2 | D73: 2 | E73: 0 | F73: 0 | G73: 0 | H73: 0 | I73: 6.3
A74: сахар | C74: 12 | D74: 12 | E74: 0 | F74: 0 | G74: 11.97 | H74: 45.48 | I74: 0
A75: молоко | C75: 150 | D75: 150 | E75: 4.2 | F75: 4.8 | G75: 7.05 | H75: 87 | I75: 0.012
A76: вода | C76: 50 | D76: 50
A77: 2-ой завтрак
A78: Сок | B78: 180 | C78: 180 | D78: 180 | E78: 0.6 | F78: 0 | G78: 10.92 | H78: 45.6 | I78: 0.24
A79: Обед
A80: Салат из свеклы | B80: 60
A81: Свекла | C81: 91 | D81: 57 | E81: 1.37 | F81: 0.096 | G81: 9.12 | H81: 38.3 | I81: 1.27
A82: Масло растительное | C82: 3 | D82: 3 | E82: 0 | F82: 3 | G82: 0 | H82: 68.3 | I82: 0
A83: Сахар | C83: 2 | D83: 2 | E83: 0 | F83: 0 | G83: 2 | H83: 7.58 | I83: 0
A84: Рассольник со сметаной на мкб | B84: 250
A85: Картофель | C85: 90 | D85: 76 | E85: 1.8 | F85: 0.36 | G85: 15.56 | H85: 72 | I85: 0.85
A86: Лук | C86: 17 | D86: 14 | E86: 0.28 | F86: 0 | G86: 1.54 | H86: 6.97 | I86: 0.13
A87: морковь | C87: 20 | D87: 16
A88: Огурцы соленые | C88: 24 | D88: 17 | E88: 0.23 | F88: 0 | G88: 1.31 | H88: 4.2 | I88: 0.23
A89: Вода | C89: 300 | D89: 300
A90: Мясо говядины на кости | C90: 42 | D90: 34 | E90: 8.81 | F90: 5.72 | G90: 0 | H90: 74.12 | I90: 1.18
A91: Сметана | C91: 8 | D91: 8 | E91: 0.22 | F91: 1.6 | G91: 0.25 | H91: 16.48 | I91: 0.012
A92: Крупа перловая | C92: 10 | D92: 10 | E92: 0.65 | F92: 0.08 | G92: 6.72 | H92: 31.08 | I92: 0.38
A93: Масло сливочное | C93: 2 | D93: 2 | E93: 0.014 | F93: 1.56 | G93: 0.02 | H93: 14.18 | I93: 0.44
A94: Бефстроганов | B94: 70
A95: Говядина | C95: 61 | D95: 49 | E95: 11.35 | F95: 7.84 | G95: 0 | H95: 106.82 | I95: 1.71
A96: Лук | C96: 18 | D96: 14 | E96: 0.25 | F96: 0 | G96: 1.63 | H96: 7.38 | I96: 0.144
A97: морковь | C97: 20 | D97: 16 | E97: 0.28 | F97: 0 | G97: 17.64 | H97: 7.14 | I97: 1.05
A98: Масло растительное | C98: 3 | D98: 3 | E98: 0.5 | F98: 0.05 | G98: 3.21 | H98: 14.3 | I98: 0
A99: Мука пшеничная | C99: 4 | D99: 4 | E99: 0.4 | F99: 4.1 | G99: 0 | H99: 44.95 | I99: 0
A100: сметана | C100: 7 | D100: 7 | E100: 0.21 | F100: 1.6 | G100: 0.25 | H100: 16.48 | I100: 0.01
A101: Макароны отварные | B101: 150
A102: макароны | C102: 51 | D102: 51 | E102: 4.7 | F102: 5 | G102: 51.6 | H102: 153 | I102: 0.52
A103: Масло сливочное | C103: 4 | D103: 4 | E103: 0.028 | F103: 3.12 | G103: 0.04 | H103: 28.36 | I103: 2.67
A104: Хлеб ржаной | B104: 55 | C104: 55 | D104: 55 | E104: 3.63 | F104: 0.66 | G104: 18.81 | H104: 99.55 | I104: 0
A105: Компот из свежих фруктов | B105: 200
A106: Фрукты свежие | C106: 32 | D106: 27 | E106: 0.13 | F106: 0.13 | G106: 3.23 | H106: 14.85 | I106: 4.29
A107: Сахар | C107: 12 | D107: 12 | E107: 0 | F107: 0 | G107: 12 | H107: 45.48 | I107: 0
A108: Вода | C108: 180 | D108: 180
A109: Полдник
A110: Пирожок с картофелем и сарделькой | B110: 90
A111: мука | C111: 50 | D111: 50 | E111: 5.14 | F111: 0.5 | G111: 43.94 | H111: 164 | I111: 0
A112: сахар | C112: 3 | D112: 3 | E112: 0 | F112: 0 | G112: 3 | H112: 11.37 | I112: 0
A113: Масло растительное | C113: 2 | D113: 2 | E113: 0 | F113: 2 | G113: 0 | H113: 0 | I113: 0
A114: Дрожжи сухие | C114: 1 | D114: 1 | E114: 0.43 | F114: 0.06 | G114: 0.4 | H114: 3.85 | I114: 0
A115: молоко | C115: 30 | D115: 30 | E115: 1.84 | F115: 0.96 | G115: 1.41 | H115: 17.4 | I115: 0.3
A116: сарделька | C116: 42 | D116: 42 | E116: 4.78 | F116: 7.6 | G116: 0.63 | H116: 90.3 | I116: 1.18
A117: картофель | C117: 22 | D117: 16 | E117: 2.44 | F117: 0.086 | G117: 3.81 | H117: 17.6 | I117: 4.4
A118: Лук | C118: 5 | D118: 4 | E118: 0.1 | F118: 0 | G118: 0.45 | H118: 2.05 | I118: 0.04
A119: Масло сливочное | C119: 5 | D119: 5 | E119: 0.028 | F119: 3.12 | G119: 0.04 | H119: 28.36 | I119: 0.028
A120: яйцо | C120: 15 | D120: 15 | E120: 1.9 | F120: 1.67 | G120: 0.042 | H120: 23.55 | I120: 0
A121: чай | B121: 200
A122: чай заварка | C122: 1 | D122: 1 | E122: 0.35 | F122: 0 | G122: 0 | H122: 0.2 | I122: 10.5
A123: Вода | C123: 200 | D123: 200
A124: ВСЕГО ЗА ДЕНЬ | E124: =SUM(E65:E123) -> 63.618 | F124: =SUM(F65:F123) -> 69.712 | G124: =SUM(G65:G123) -> 274.242 | H124: =SUM(H65:H123) -> 1694.36 | I124: =SUM(I65:I123) -> 39.267
A125: Соль за день | B125: 6 | C125: 6 | D125: 6
A130: 3 день
A131: Наименование блюда | B131: Выход блюда | C131: Кол-во в гр | E131: Химический состав | H131: Калории | I131: Витамин С | J131: Цена | K131: Сумма
C132: брутто | D132: нетто | E132: белки | F132: жиры | G132: углеводы
A133: Завтрак
A134: Каша ячневая молочная | B134: 200
A135: Ячневая крупа | C135: 25 | D135: 25 | E135: 1.56 | F135: 0.19 | G135: 15.97 | H135: 73.81 | I135: 0
A136: молоко | C136: 130 | D136: 130 | E136: 3.64 | F136: 4.16 | G136: 6.11 | H136: 75.4 | I136: 0.1
A137: вода | C137: 60 | D137: 60
A138: сахар | C138: 8 | D138: 8 | E138: 0 | F138: 0 | G138: 7.97 | H138: 30.32 | I138: 0
A139: Масло сливочное | C139: 3 | D139: 3 | E139: 0.021 | F139: 2.34 | G139: 0.03 | H139: 21.27 | I139: 0.021
A140: Бутерброд с маслом и сыром | B140: 62
A141: Масло сливочное | C141: 8 | D141: 8 | E141: 0.057 | F141: 6.24 | G141: 0.08 | H141: 66.61 | I141: 0.06
A142: Батон (хлеб пшеничный) | C142: 42 | D142: 42 | E142: 3.24 | F142: 1.26 | G142: 20.45 | H142: 120.06 | I142: 0
A143: Сыр твердый | C143: 12.8 | D143: 12.8 | E143: 2.94 | F143: 3.72 | G143: 0 | H143: 46.08 | I143: 0.22
A144: Кофейный напиток | B144: 200
A145: Кофейный напток | C145: 2 | D145: 2 | E145: 0 | F145: 0 | G145: 0 | H145: 0 | I145: 6.3
A146: сахар | C146: 12 | D146: 12 | E146: 0 | F146: 0 | G146: 11.97 | H146: 45.48 | I146: 0
A147: молоко | C147: 150 | D147: 150 | E147: 4.2 | F147: 4.8 | G147: 7.05 | H147: 87 | I147: 0.012
A148: вода | C148: 70 | D148: 70
A149: Обед
A150: Суп картофельный на мкб со сметаной | B150: 250
A151: картофель | C151: 151 | D151: 124 | E151: 3.02 | F151: 0.61 | G151: 36.11 | H151: 120.8 | I151: 30.2
A152: морковь | C152: 21 | D152: 17 | E152: 0.28 | F152: 0 | G152: 17.64 | H152: 7.14 | I152: 1.05
A153: лук | C153: 17 | D153: 14 | E153: 0.28 | G153: 0 | H153: 1.54 | I153: 6.97
A154: Масло сливочное | C154: 2 | D154: 2 | E154: 0.014 | F154: 1.56 | G154: 0.02 | H154: 14.18 | I154: 0.44
A155: Мясо говядины на кости | C155: 42 | D155: 34 | E155: 7.81 | F155: 9.72 | G155: 0 | H155: 91.56 | I155: 1.18
A156: Сметана | C156: 8 | D156: 8 | E156: 0.22 | F156: 1.6 | G156: 0.25 | H156: 16.48 | I156: 0.012
A157: Масло растительное | C157: 3 | D157: 3 | E157: 0.5 | F157: 0.05 | G157: 3.21 | H157: 14.3 | I157: 0
A158: Капуста тушеная | B158: 150
A159: Капуста белокочанная | C159: 204 | D159: 171 | E159: 3.07 | F159: 0.17 | G159: 8.14 | H159: 46.51 | I159: 86.15
A160: Масло растительное | C160: 4 | D160: 4 | E160: 0 | F160: 2 | G160: 0 | H160: 0 | I160: 0
A161: Морковь | C161: 25 | D161: 21 | E161: 0.43 | F161: 0.03 | G161: 28 | H161: 11.3 | I161: 1.7
A162: Лук | C162: 15 | D162: 13 | E162: 13.3 | F162: 0 | G162: 1.36 | H162: 6.15 | I162: 0.11
A163: Томат-паста | C163: 3 | D163: 3 | E163: 0.096 | F163: 0 | G163: 0.38 | H163: 2.98 | I163: 0.52
A164: мука пшеничная | C164: 3 | D164: 3 | E164: 0.21 | F164: 0.02 | G164: 1.38 | H164: 10.7 | I164: 0
A165: молоко | C165: 37 | D165: 37 | E165: 1.26 | F165: 3.44 | G165: 2.61 | H165: 26.1 | I165: 0.45
A166: Масло сливочное | C166: 4 | D166: 4 | E166: 0.028 | F166: 3.12 | G166: 0.04 | H166: 38.36 | I166: 2.67
A167: Котлета говяжья | B167: 70
A168: Говядина | C168: 64 | D168: 50 | E168: 11.9 | F168: 10.24 | G168: 0 | H168: 139.52 | I168: 1.8
A169: Лук | C169: 19 | D169: 15 | E169: 0.42 | F169: 0 | G169: 2.85 | H169: 12.46 | I169: 3.04
A170: мука | C170: 10 | D170: 10 | E170: 1.03 | F170: 0.11 | G170: 6.9 | H170: 33.4 | I170: 0
A171: яйцо | C171: 10 | D171: 10 | E171: 0.63 | F171: 0.55 | G171: 0.035 | H171: 7.85 | I171: 0
A172: Хлеб пшеничный | C172: 20 | D172: 20 | E172: 1.55 | F172: 0.6 | G172: 9.96 | H172: 72.4 | I172: 0
A173: молоко | C173: 18 | D173: 18 | E173: 0.5 | F173: 3.58 | G173: 0.84 | H173: 47.16 | I173: 0
A174: чай сладкий | B174: 200
A175: чай заварка | C175: 1 | D175: 1 | E175: 0.35 | F175: 0 | G175: 0 | H175: 0.2 | I175: 10.5
A176: сахар | C176: 12 | D176: 12 | E176: 0 | F176: 0 | G176: 12 | H176: 45.48 | I176: 0
A177: Вода | C177: 200 | D177: 200
A178: Хлеб ржаной | B178: 55 | C178: 55 | D178: 55 | E178: 3.63 | F178: 0.66 | G178: 18.81 | H178: 131.9 | I178: 0
A179: Полдник
A180: Сок | B180: 180 | C180: 180 | D180: 180 | E180: 0.6 | F180: 0 | G180: 1.092 | H180: 45.6 | I180: 0.24
A181: Печенье | B181: 20 | C181: 20 | D181: 20 | E181: 2.08 | F181: 3.04 | G181: 35.36 | H181: 91.6 | I181: 0
A182: Фрукт | B182: 160 | C182: 160 | D182: 160 | E182: 0.64 | F182: 0.48 | G182: 67.2 | H182: 69 | I182: 64
A183: ВСЕГО ЗА ДЕНЬ | E183: =SUM(E135:E181) -> 68.866 | F183: =SUM(F135:F181) -> 63.81 | G183: =SUM(G135:G181) -> 256.617 | H183: =SUM(H134:H181) -> 1601.7 | I183: =SUM(I135:I181) -> 153.745
A184: Соль за день | B184: 6 | C184: 6 | D184: 6
A189: 4 день
A190: Наименование блюда | B190: Выход блюда | C190: Кол-во в гр | E190: Химический состав | H190: Калории | I190: Витамин С | J190: Цена | K190: Сумма
C191: брутто | D191: нетто | E191: белки | F191: жиры | G191: углеводы
A192: Завтрак | B192: 200
A193: Каша Дружба (пшено,гречка)
A194: пшено | C194: 15 | D194: 15 | E194: 2.07 | F194: 0.6 | G194: 11.97 | H194: 62.64 | I194: 0
A195: гречка | C195: 15 | D195: 15 | E195: 2.14 | F195: 0.56 | G195: 11.79 | H195: 57.41 | I195: 0
A196: молоко | C196: 130 | D196: 130 | E196: 3.64 | F196: 4.16 | G196: 6.11 | H196: 75.4 | I196: 0.1
A197: вода | C197: 60 | D197: 60
A198: Масло сливочное | C198: 3 | D198: 3 | E198: 0.021 | F198: 2.34 | G198: 0.03 | H198: 21.27 | I198: 0.021
A199: сахар | C199: 8 | D199: 8 | E199: 0 | F199: 0 | G199: 7.97 | H199: 30.32 | I199: 0
A200: Бутерброд с маслом | B200: 50
A201: Масло сливочное | C201: 8 | D201: 8 | E201: 0.057 | F201: 7.24 | G201: 0.08 | H201: 56.61 | I201: 0.06
A202: Батон (хлеб пшеничный) | C202: 42 | D202: 42 | E202: 3.24 | F202: 1.26 | G202: 20.45 | H202: 97.55 | I202: 0
A203: Кофейный напиток | B203: 200
A204: Кофейный напток | C204: 2 | D204: 2 | E204: 0 | F204: 0 | G204: 0 | H204: 0 | I204: 6.3
A205: сахар | C205: 12 | D205: 12 | E205: 0 | F205: 0 | G205: 11.97 | H205: 45.48 | I205: 0
A206: молоко | C206: 150 | D206: 150 | E206: 4.2 | F206: 4.8 | G206: 7.05 | H206: 87 | I206: 0.012
A207: вода | C207: 70 | D207: 70
A208: 2-ой завтрак
A209: Фрукт | B209: 160 | C209: 160 | D209: 160 | E209: 0.64 | F209: 0.48 | G209: 67.2 | H209: 69 | I209: 64
... 542 more rows

Sheet Лист2

Sheet Лист3
